bitfinex/quotes_ETHUSD_20260113
["timestamp","ask_amount","ask_price","bid_price","bid_amount"]
[1768347685495,0.94252462,3315.4,3314.7,0.001]
[1768347686218,0.24299334,3315.5,3314.7,0.95680011]
[1768347688830,0.24299334,3315.5,3315.0,0.001]
[1768347689842,0.28069504,3315.5,3315.0,0.001]
[1768347690007,1.64639611,3315.4,3315.0,0.001]
[1768347690204,0.94252462,3315.4,3315.0,0.001]
[1768347691413,0.28018316,3315.3,3315.0,0.001]
[1768347691733,0.94252462,3315.4,3315.0,0.001]
[1768347691937,0.94252462,3315.2,3314.7,0.001]
[1768347692121,0.94252462,3315.0,3314.7,0.001]
[1768347692323,0.94252462,3315.0,3313.6,3.01780154]
[1768347692531,0.28021053,3314.9,3313.8,0.95580011]
[1768347692839,0.398,3315.2,3314.0,0.95580011]
[1768347693141,0.28022193,3315.1,3314.0,0.95580011]
[1768347693313,0.28026588,3315.0,3314.1,0.95580011]
[1768347693634,5.26073308,3315.5,3314.1,0.95580011]
[1768347693835,0.28026679,3315.4,3314.1,0.95580011]
[1768347694035,0.28026679,3315.3,3314.3,0.95580011]
[1768347694235,0.28026679,3315.2,3314.4,0.95580011]
[1768347695610,0.28026679,3315.1,3314.4,0.95580011]
[1768347695826,1.34052462,3315.5,3314.4,0.95580011]
[1768347696024,0.28027121,3315.4,3314.4,0.95580011]
[1768347696211,0.28027121,3315.3,3314.4,0.95580011]
[1768347696414,0.28027121,3315.2,3314.4,0.95580011]
[1768347696750,0.28027121,3315.1,3314.4,0.95580011]
[1768347696910,0.43566107,3315.4,3314.4,0.95580011]
[1768347697112,0.28027668,3315.3,3314.4,0.95580011]
[1768347697352,0.28027668,3315.2,3314.4,0.95580011]
[1768347697555,0.28027668,3315.1,3314.4,0.95580011]
[1768347697733,0.43566107,3315.4,3314.4,0.95580011]
[1768347697938,0.28030747,3315.3,3314.4,0.95580011]
[1768347698142,0.28030747,3315.2,3314.4,0.95580011]
[1768347698351,0.28030747,3315.1,3314.4,0.95580011]
[1768347698514,1.34052462,3315.5,3314.4,0.95580011]
[1768347698716,0.28030822,3315.4,3314.4,0.95580011]
[1768347698932,0.28030822,3315.3,3314.4,0.95580011]
[1768347699144,0.28030822,3315.2,3314.4,0.95580011]
[1768347699348,0.28030822,3315.1,3314.4,0.95580011]
[1768347699529,1.34052462,3315.5,3314.4,0.95580011]
[1768347699846,0.28030129,3315.4,3314.4,0.95580011]
[1768347700036,0.28030129,3315.3,3314.4,0.95580011]
[1768347700234,0.28030129,3315.2,3314.7,0.91041713]
[1768347700533,0.28030129,3315.1,3314.7,0.91041713]
[1768347700845,0.002,3315.2,3314.7,0.91041713]
[1768347701046,0.2802107,3315.1,3314.7,0.91041713]
[1768347701209,0.002,3315.2,3314.7,0.91041713]
[1768347701612,0.002,3315.2,3314.9,0.90941713]
[1768347701832,0.002,3315.5,3314.8,0.90941713]
[1768347702118,0.945972,3315.5,3314.9,0.43700469]
[1768347702339,0.945972,3315.5,3314.7,0.001]
[1768347702546,0.002,3315.5,3314.7,0.92563426]
[1768347703267,0.002,3315.5,3314.8,0.90941713]
[1768347704674,0.945972,3315.5,3314.7,0.001]
[1768347704866,0.03770284,3315.4,3314.7,0.91041713]
[1768347706853,0.0397017,3315.5,3314.7,0.91041713]
[1768347707084,0.002,3315.5,3314.8,0.90941713]
[1768347708884,0.002,3316.3,3315.2,0.90941713]
[1768347709043,0.2802568,3316.2,3315.3,0.90941713]
[1768347709243,0.2802568,3316.1,3315.3,0.90941713]
[1768347709443,0.002,3316.3,3315.3,0.90941713]
[1768347709678,0.002,3316.3,3315.4,0.90941713]
[1768347709975,0.002,3316.3,3315.5,0.90941713]
[1768347711147,0.943972,3316.2,3315.3,0.398]
[1768347711378,0.943972,3316.0,3315.3,0.398]
[1768347711580,0.03769715,3315.9,3314.8,0.90941713]
[1768347711749,0.943972,3315.9,3315.0,3.01656777]
[1768347711945,0.943972,3315.9,3315.0,6.72742322]
[1768347712167,0.943972,3316.2,3315.1,0.90941713]
[1768347712377,0.943972,3316.2,3315.1,1.30741713]
[1768347712546,0.945972,3316.0,3315.1,1.30741713]
[1768347712749,0.945972,3316.0,3315.1,1.34181562]
[1768347712951,0.002,3316.0,3315.2,0.90941713]
[1768347713251,0.002,3316.0,3315.3,0.90941713]
[1768347713863,0.002,3316.0,3315.4,0.90941713]
[1768347714063,0.002,3316.3,3315.3,3.01623608]
[1768347714064,0.002,3316.3,3315.6,0.90941713]
[1768347714286,0.002,3316.3,3315.8,0.90941713]
[1768347715555,0.002,3316.3,3315.7,0.398]
[1768347715754,0.9836646,3316.3,3315.4,0.398]
[1768347716261,0.9836646,3316.3,3315.3,1.30741713]
[1768347717428,0.9836646,3316.3,3314.9,3.01665824]
[1768347717429,0.57288301,3318.5,3318.1,0.90941713]
[1768347717702,0.55082834,3318.5,3318.2,0.398]
[1768347718680,0.002,3318.9,3318.5,0.01810622]
[1768347719776,0.002,3318.9,3318.6,0.398]
[1768347720276,0.002,3319.3,3318.6,0.398]
[1768347720725,0.002,3319.3,3318.5,0.01810622]
[1768347721016,0.002,3319.3,3318.7,0.398]
[1768347722704,0.002,3319.3,3318.5,0.01810622]
[1768347722877,0.945972,3319.3,3318.5,0.01810622]
[1768347723281,0.943972,3319.1,3318.5,0.01810622]
[1768347723480,0.943972,3318.9,3318.5,0.01810622]
[1768347724109,0.943972,3319.2,3318.5,0.01810622]
[1768347724410,0.002,3319.0,3318.5,0.01810622]
[1768347725182,0.93910009,3319.0,3318.5,0.01810622]
[1768347725798,0.002,3319.0,3318.5,0.01810622]
[1768347727009,0.002,3319.0,3317.1,0.95645946]
[1768347727010,0.9596081,3318.9,3317.1,0.95645946]
[1768347727335,0.93710009,3318.9,3317.3,3.01442339]
[1768347727481,0.93710009,3318.9,3317.4,0.30144234]
[1768347727686,0.93710009,3318.9,3317.5,0.398]
[1768347728216,0.93710009,3318.7,3317.4,3.01440676]
[1768347728418,0.93710009,3318.7,3317.4,1.35445946]
[1768347728653,0.93710009,3318.7,3317.4,4.36883343]
[1768347728789,0.93710009,3318.7,3317.4,2.09279985]
[1768347729124,0.93710009,3318.7,3317.4,5.10717667]
[1768347729422,0.93710009,3318.7,3317.4,2.09279985]
[1768347729618,0.93710009,3318.7,3317.4,1.35445946]
[1768347729989,0.93710009,3318.7,3317.4,4.36884519]
[1768347730500,3.95026653,3318.8,3317.5,0.95645946]
[1768347731716,0.93710009,3318.7,3317.5,0.95645946]
[1768347732090,3.01331886,3318.6,3317.5,1.35445946]
[1768347732286,0.6963709,3318.5,3317.5,1.35445946]
[1768347732517,0.6963709,3318.5,3316.5,3.17517931]
[1768347732518,1.63347099,3318.5,3317.2,0.95645946]
[1768347732720,0.93710009,3318.4,3317.3,0.398]
[1768347733107,0.6963709,3318.5,3317.4,0.95645946]
[1768347733289,0.6963709,3318.5,3317.4,1.39335885]
[1768347734334,0.6963709,3318.5,3317.5,0.95645946]
[1768347735424,0.93710009,3318.7,3317.5,0.95645946]
[1768347735735,3.95028986,3318.8,3317.5,0.95645946]
[1768347736099,0.93710009,3318.8,3317.8,0.001]
[1768347736390,0.93910009,3318.7,3317.8,0.001]
[1768347736593,0.002,3318.7,3317.8,0.001]
[1768347737620,0.91547259,3318.7,3317.8,0.001]
[1768347738820,0.91347259,3318.6,3317.8,0.001]
[1768347739018,0.91347259,3318.4,3317.8,0.001]
[1768347740105,0.002,3318.7,3317.8,0.001]
[1768347740629,3.92870797,3318.7,3317.8,0.001]
[1768347740945,0.91347259,3318.5,3317.8,0.001]
[1768347743033,0.3928708,3318.6,3317.8,0.001]
[1768347743208,3.40620743,3318.6,3317.8,0.001]
[1768347743830,0.3928708,3318.6,3317.8,0.001]
[1768347744025,4.32673401,3318.7,3317.8,0.001]
[1768347745634,0.91347259,3318.6,3317.8,0.001]
[1768347746003,0.91347259,3318.4,3317.8,0.001]
[1768347746207,0.91347259,3318.2,3317.8,0.001]
[1768347747332,3.01347368,3318.5,3317.8,0.001]
[1768347747542,0.58134533,3318.4,3317.8,0.001]
[1768347747706,0.27999796,3318.3,3317.8,0.001]
[1768347748551,0.91347259,3318.2,3317.8,0.001]
[1768347748713,0.91347259,3318.2,3318.1,0.001]
[1768347748915,0.30134737,3318.4,3318.1,0.001]
[1768347749115,0.70283745,3318.3,3318.1,0.001]
[1768347749316,0.28004117,3318.2,3318.1,0.001]
[1768347751316,0.91347259,3318.5,3318.1,0.001]
[1768347751518,0.28011666,3318.4,3318.1,0.001]
[1768347751716,3.29361887,3318.4,3318.1,0.001]
[1768347752035,0.28011666,3318.3,3318.1,0.001]
[1768347752235,0.28011666,3318.2,3318.1,0.001]
[1768347752442,1.19358925,3318.2,3318.1,0.001]
[1768347752824,0.91347259,3318.1,3317.0,0.95296341]
[1768347753843,0.28033396,3318.0,3317.0,3.96771718]
[1768347754042,0.91347259,3318.1,3317.1,0.39677172]
[1768347754246,0.2803759,3318.0,3317.1,1.34973513]
[1768347754550,0.91347259,3318.1,3317.1,1.34973513]
[1768347754746,0.28039968,3318.0,3317.1,1.34973513]
[1768347755052,0.91347259,3318.1,3317.2,0.43644624]
[1768347755548,0.28043839,3318.0,3317.2,0.43644624]
[1768347755750,0.91347259,3318.1,3317.2,0.43644624]
[1768347755921,0.28043872,3318.0,3317.2,0.43644624]
[1768347756121,0.91347259,3318.1,3317.2,0.43644624]
[1768347756350,0.28043832,3318.0,3317.2,0.43644624]
[1768347756650,0.91347259,3318.1,3317.2,0.43644624]
[1768347756830,0.28049793,3318.0,3317.3,0.34511143]
[1768347757035,0.91347259,3318.1,3317.3,0.34511143]
[1768347757219,0.28049918,3318.0,3317.3,0.34511143]
[1768347757419,0.398,3318.2,3317.3,0.34511143]
[1768347757619,0.28048976,3318.1,3317.1,0.93574777]
[1768347757821,0.28048976,3318.0,3317.1,0.93574777]
[1768347758022,0.398,3318.2,3317.1,3.95041448]
[1768347758222,0.28048433,3318.1,3317.1,3.95041448]
[1768347758434,0.28048433,3318.0,3317.2,0.39504145]
[1768347758651,1.38354948,3318.2,3317.2,0.39504145]
[1768347758863,0.28048269,3318.1,3317.2,0.39504145]
[1768347759069,1.38354948,3318.2,3317.2,0.39504145]
[1768347759368,0.28048278,3318.1,3317.2,0.39504145]
[1768347759567,1.38354948,3318.2,3317.2,0.39504145]
[1768347759746,0.28048305,3318.1,3317.2,0.39504145]
[1768347759938,1.38354948,3318.2,3317.2,1.33078922]
[1768347760139,0.28048315,3318.1,3317.5,0.001]
[1768347760463,0.002,3317.8,3317.5,0.001]
[1768347761934,0.98754948,3317.8,3317.5,0.001]
[1768347762137,0.002,3317.8,3317.5,0.001]
[1768347762772,0.98754948,3317.8,3317.5,0.001]
[1768347763562,0.002,3317.8,3317.5,0.001]
[1768347765449,0.98754948,3317.8,3317.5,0.001]
[1768347765673,0.002,3317.8,3317.5,0.001]
[1768347767954,0.002,3317.8,3317.5,0.93674777]
[1768347769775,0.98754948,3317.8,3317.5,0.001]
[1768347769989,0.002,3317.8,3317.5,0.001]
[1768347770190,0.002,3317.8,3317.5,0.93674777]
[1768347772295,0.002,3317.8,3317.5,0.001]
[1768347772476,0.002,3317.8,3317.5,0.93674777]
[1768347772963,0.98754948,3317.8,3317.5,0.001]
[1768347773858,0.002,3317.8,3317.5,0.001]
[1768347775092,0.002,3318.1,3317.5,0.93674777]
[1768347775260,0.002,3318.1,3317.7,0.93574777]
[1768347775661,0.002,3318.1,3317.5,0.399]
[1768347775662,0.002,3318.7,3318.1,0.93574777]
[1768347775890,0.28069926,3318.6,3318.1,0.93574777]
[1768347776078,0.28069926,3318.5,3317.6,3.01415948]
[1768347776281,0.002,3318.7,3317.8,0.93574777]
[1768347776484,0.280622,3318.6,3317.8,0.93574777]
[1768347776684,0.280622,3318.5,3317.8,0.93574777]
[1768347776869,0.002,3318.7,3317.8,0.93574777]
[1768347777174,0.002,3318.7,3317.6,0.93574777]
[1768347777175,1.26617033,3318.6,3317.6,0.93574777]
[1768347777376,0.28062085,3318.5,3317.6,1.27707303]
[1768347777591,0.98554948,3318.6,3317.5,3.41327785]
[1768347777820,1.26612894,3318.5,3317.5,3.41328727]
[1768347777974,0.98554948,3318.5,3317.5,3.41328727]
[1768347778474,0.98754948,3318.7,3317.5,0.93674777]
[1768347778679,0.28053173,3318.6,3317.7,0.93574777]
[1768347778914,0.28053173,3318.5,3317.8,0.93574777]
[1768347779122,0.98754948,3318.7,3317.5,0.001]
[1768347779278,0.98554948,3318.4,3317.5,0.001]
[1768347779804,0.98554948,3318.6,3317.5,0.93674777]
[1768347780016,0.98554948,3318.4,3317.5,0.001]
[1768347780308,0.68060902,3318.5,3317.5,0.001]
[1768347780309,0.98554948,3318.2,3317.5,0.001]
[1768347782107,0.02250801,3318.4,3317.5,0.001]
[1768347782108,1.00805749,3318.1,3317.5,0.001]
[1768347782327,0.98554948,3318.1,3317.5,0.001]
[1768347782528,3.41152456,3318.4,3317.5,0.001]
[1768347782529,1.66604149,3318.0,3317.5,0.001]
[1768347782811,0.98554948,3318.0,3317.5,0.001]
[1768347783982,0.98554948,3318.0,3317.8,0.001]
[1768347784378,0.002,3317.9,3317.8,0.001]
[1768347785617,0.97253494,3317.9,3317.8,0.001]
[1768347785976,0.002,3317.9,3317.8,0.001]
[1768347789984,0.97253494,3317.9,3317.8,0.001]
[1768347790185,1.85265224,3317.9,3317.8,0.001]
[1768347790501,0.97053494,3317.8,3317.0,0.11485462]
[1768347791012,0.97053494,3317.8,3316.8,3.01495417]
[1768347791216,0.97053494,3317.8,3316.4,2.20290466]
[1768347791510,0.97053494,3317.8,3316.6,3.41310966]
[1768347791511,0.97053494,3317.7,3316.6,3.41310966]
[1768347791881,0.002,3317.9,3316.9,0.90263843]
[1768347792086,0.002,3317.9,3317.1,0.90334476]
[1768347792302,0.02450801,3317.9,3317.1,0.90334476]
[1768347793114,0.97053494,3317.8,3316.8,0.90404423]
[1768347793310,0.97053494,3317.8,3316.8,3.91898532]
[1768347793708,0.97053494,3317.8,3316.9,3.0148579]
[1768347793918,0.5044508,3317.9,3317.0,3.01476937]
[1768347794235,0.5044508,3317.9,3317.1,0.93486495]
[1768347794390,0.5044508,3317.9,3317.1,0.90471814]
[1768347794822,0.002,3317.9,3317.1,3.9193797]
[1768347795031,0.002,3317.9,3317.1,0.90471814]
[1768347795193,0.002,3317.9,3317.1,3.91934848]
[1768347795395,0.002,3317.9,3317.2,0.90538986]
[1768347795635,0.002,3317.9,3317.3,1.29739188]
[1768347796126,0.002,3317.9,3317.4,0.001]
[1768347796430,0.002,3318.2,3317.8,0.90604786]
[1768347796592,0.002,3318.2,3317.9,0.90604786]
[1768347797304,0.002,3318.2,3317.8,0.398]
[1768347797697,0.96440962,3318.2,3317.6,9.8013037]
[1768347797893,0.96440962,3318.2,3317.7,0.398]
[1768347798116,0.002,3318.2,3317.7,3.41205973]
[1768347798520,0.002,3318.2,3317.9,3.01395431]
[1768347798716,0.002,3318.2,3318.0,0.30139543]
[1768347798924,0.002,3318.2,3317.7,3.41207119]
[1768347799126,0.002,3318.2,3317.9,3.92255957]
[1768347799326,0.002,3318.7,3317.9,3.92255957]
[1768347799704,0.002,3318.7,3317.9,0.90861363]
[1768347800408,0.002,3318.7,3317.7,0.398]
[1768347800609,0.002,3318.7,3317.8,1.41227135]
[1768347801126,0.002,3318.7,3317.9,3.01394623]
[1768347802132,0.002,3319.0,3318.0,0.91048837]
[1768347802533,0.002,3319.0,3318.4,0.91048837]
[1768347802735,0.002,3319.0,3318.5,0.398]
[1768347804112,0.96440962,3319.0,3317.8,1.41227135]
[1768347804326,0.96440962,3319.0,3317.9,0.398]
[1768347804528,0.96240962,3318.8,3317.4,0.91269131]
[1768347804728,0.96240962,3318.6,3317.5,0.398]
[1768347804927,0.96240962,3318.6,3317.6,3.01416095]
[1768347805128,0.96240962,3318.6,3317.7,3.04427121]
[1768347806243,0.96240962,3318.9,3317.7,3.95712652]
[1768347806404,0.002,3319.0,3317.8,0.94299576]
[1768347806608,0.002,3319.0,3318.0,0.91285531]
[1768347806810,0.002,3319.0,3318.1,0.91285531]
[1768347807646,0.96440962,3319.0,3318.0,0.398]
[1768347807849,0.96240962,3318.8,3318.2,0.001]
[1768347808148,0.30444204,3318.7,3317.2,1.31199855]
[1768347808351,0.002,3318.7,3317.6,3.9282073]
[1768347808551,0.002,3318.7,3317.8,0.91399855]
[1768347808725,0.002,3318.7,3317.9,0.17302423]
[1768347810555,0.002,3318.7,3317.9,3.18694668]
[1768347811423,0.002,3318.7,3317.9,0.17302423]
[1768347811821,0.002,3318.7,3317.9,3.18695268]
[1768347812021,0.002,3318.7,3318.0,0.91617784]
[1768347812228,0.002,3318.7,3318.1,1.32649089]
[1768347813853,0.002,3318.7,3318.3,0.91672794]
[1768347814623,0.002,3318.7,3318.3,3.93028067]
[1768347814942,0.002,3318.7,3318.4,0.91723729]
[1768347815763,3.01445499,3319.6,3318.4,0.91723729]
[1768347815764,0.92586472,3320.6,3318.4,0.44837873]
[1768347815923,0.92586472,3320.6,3318.3,9.04076123]
[1768347815924,0.92586472,3320.6,3319.4,0.91627937]
[1768347816122,0.92586472,3320.6,3319.5,1.33503218]
[1768347816340,0.92586472,3320.6,3319.5,0.91678845]
[1768347816739,0.002,3320.7,3319.6,4.34744331]
[1768347816942,0.92786472,3320.7,3319.6,3.43065486]
[1768347817173,0.002,3320.7,3320.0,0.91727293]
[1768347817464,0.002,3320.7,3320.2,0.91527293]
[1768347817675,0.398,3322.1,3320.1,0.81624373]
[1768347817676,3.9357371,3322.4,3320.4,0.91527293]
[1768347817826,0.92586472,3322.0,3320.4,0.91527293]
[1768347818026,0.92586472,3321.8,3320.5,0.398]
[1768347818226,0.15696608,3322.1,3319.9,0.91327293]
[1768347818227,0.92586472,3321.6,3319.9,0.91327293]
[1768347818528,0.92586472,3321.4,3320.0,0.398]
[1768347818870,0.92586472,3321.4,3320.1,3.01195747]
[1768347819162,0.92586472,3321.2,3320.1,3.01195747]
[1768347819525,0.92586472,3321.2,3320.0,3.41002542]
[1768347820174,0.92586472,3321.0,3319.2,0.91470986]
[1768347820327,0.92586472,3320.8,3319.3,3.41067228]
[1768347820730,0.92586472,3320.7,3319.3,3.41067228]
[1768347821028,0.92586472,3320.7,3319.4,0.398]
[1768347821431,0.92586472,3320.7,3319.3,3.01267228]
[1768347821432,0.92586472,3320.5,3319.3,3.41067711]
[1768347821651,0.02250801,3320.4,3319.3,3.41067711]
[1768347821857,0.92586472,3320.5,3319.3,3.41067711]
[1768347822051,0.92586472,3320.5,3319.3,4.0530212]
[1768347822460,0.92586472,3320.5,3319.3,1.04034409]
[1768347822830,0.92586472,3320.3,3319.3,3.41066741]
[1768347823072,0.02250801,3320.2,3319.3,3.41066741]
[1768347823253,0.92586472,3320.4,3319.3,3.41066741]
[1768347823938,0.92586472,3320.4,3319.4,0.398]
[1768347824347,0.92586472,3320.3,3319.1,0.398]
[1768347824678,0.92586472,3320.1,3319.1,0.398]
[1768347825231,3.93756858,3320.4,3319.1,1.31206128]
[1768347826472,3.93756858,3320.4,3319.1,4.32490942]
[1768347826648,0.39375686,3320.3,3319.1,4.32490942]
[1768347827272,4.33140737,3320.3,3319.1,1.31206128]
[1768347827772,1.31962158,3320.3,3319.1,4.32491589]
[1768347827937,1.31962158,3320.3,3319.1,1.31206128]
[1768347828136,0.92586472,3320.3,3319.1,1.31206128]
[1768347828362,3.9376726,3320.3,3319.1,1.31206128]
[1768347828876,0.92586472,3320.3,3319.1,1.31206128]
[1768347829075,0.92586472,3320.2,3319.1,0.398]
[1768347829278,0.92586472,3320.2,3318.9,3.01298004]
[1768347829579,0.92586472,3320.0,3319.0,3.41092465]
[1768347829774,0.92586472,3320.0,3319.0,0.398]
[1768347830458,0.92586472,3320.0,3318.7,0.001]
[1768347830633,0.92586472,3320.0,3318.7,0.399]
[1768347830963,0.92586472,3320.0,3318.7,3.41218912]
[1768347831369,0.92586472,3320.0,3318.8,3.01308949]
[1768347831549,0.92586472,3319.8,3318.8,3.01308949]
[1768347831933,0.92586472,3319.8,3318.7,0.399]
[1768347832136,0.92586472,3319.8,3318.7,3.41219842]
[1768347832368,0.92586472,3319.8,3318.7,3.4122227]
[1768347833069,0.92586472,3319.8,3318.7,0.001]
[1768347833669,0.94837273,3319.9,3318.7,0.001]
[1768347833843,0.92586472,3319.7,3318.7,0.001]
[1768347835173,0.92586472,3319.5,3318.7,0.001]
[1768347840876,0.92586472,3319.4,3318.7,0.001]
[1768347841380,0.94837273,3319.4,3318.7,0.001]
[1768347841579,0.92586472,3319.2,3318.7,0.001]
[1768347842079,0.92586472,3319.0,3318.7,0.001]
[1768347843259,0.92586472,3319.2,3318.7,0.001]
[1768347844077,0.92586472,3319.0,3318.7,0.001]
[1768347844296,0.92586472,3319.0,3317.6,0.90930111]
[1768347844297,0.92586472,3319.0,3317.9,3.01390584]
[1768347844653,0.92586472,3319.0,3318.0,3.0138495]
[1768347844851,1.32386472,3319.3,3318.2,3.01368211]
[1768347845073,1.32386472,3319.3,3318.2,3.92254027]
[1768347845473,0.15704762,3320.1,3318.4,3.778565]
[1768347845672,0.15704762,3320.1,3319.6,0.2975]
[1768347845849,1.00706238,3320.3,3319.6,0.2975]
[1768347850272,3.01162729,3320.5,3319.6,0.2975]
[1768347850273,1.00706238,3320.1,3319.6,0.2975]
[1768347850673,1.00706238,3320.5,3319.6,0.2975]
[1768347850997,1.00706238,3320.3,3319.6,0.2975]
[1768347851758,1.00706238,3320.3,3319.2,3.01270852]
[1768347851960,1.00706238,3320.3,3319.0,3.01293631]
[1768347851961,1.00706238,3320.3,3319.3,0.398]
[1768347852886,1.00706238,3320.3,3319.3,3.41066169]
[1768347853273,1.00706238,3320.3,3319.3,0.398]
[1768347853478,1.00706238,3320.3,3319.3,0.73908546]
[1768347853789,1.00706238,3320.3,3319.3,3.75176371]
[1768347854185,1.00706238,3320.3,3319.3,4.17000744]
[1768347854887,0.002,3320.0,3319.3,3.75176371]
[1768347855980,0.002,3320.0,3319.3,3.78189054]
[1768347856263,0.002,3320.0,3319.4,0.77016466]
[1768347857064,0.002,3320.0,3319.4,3.78275456]
[1768347857467,0.002,3320.0,3319.5,0.90621551]
[1768347857666,0.002,3320.0,3319.4,3.78275456]
[1768347860197,0.71082064,3320.4,3319.4,3.78275456]
[1768347860381,0.71082064,3320.4,3319.5,0.75345135]
[1768347860583,3.16848548,3320.7,3319.6,5.52975495]
[1768347860584,0.15703018,3320.7,3319.6,5.52975495]
[1768347860902,0.002,3321.7,3319.6,5.52975495]
[1768347860903,1.00632064,3321.7,3320.4,0.76220973]
[1768347861100,1.00632064,3321.7,3320.6,0.7620288]
[1768347861300,1.02682865,3321.6,3320.3,3.77376719]
[1768347861474,1.02682865,3321.6,3320.5,3.01153047]
[1768347861796,1.02682865,3321.6,3320.4,0.398]
[1768347861797,1.00432064,3321.6,3320.4,0.398]
[1768347862000,1.00432064,3321.6,3320.5,3.0115644]
[1768347862404,1.00432064,3321.6,3320.5,3.01157505]
[1768347862604,1.00432064,3321.6,3320.4,0.398]
[1768347862790,1.00432064,3321.6,3320.6,3.01148362]
[1768347862969,1.00432064,3321.6,3320.7,0.398]
[1768347863374,1.00432064,3321.6,3320.6,3.01147448]
[1768347863570,1.00432064,3321.6,3320.7,0.398]
[1768347865689,1.00432064,3321.6,3320.7,3.40941029]
[1768347865887,3.0096912,3322.6,3321.1,0.76132561]
[1768347866075,1.00432064,3322.6,3321.0,0.76115483]
[1768347866274,1.00432064,3322.4,3320.7,3.0114122]
[1768347866479,1.00432064,3322.2,3320.8,0.398]
[1768347867316,1.00432064,3322.1,3320.8,0.398]
[1768347867677,1.00432064,3322.1,3320.8,3.40931627]
[1768347867881,1.00432064,3322.1,3320.8,6.42063884]
[1768347868075,1.00432064,3322.1,3320.8,3.40931627]
[1768347868316,3.01007725,3322.2,3320.8,3.40931627]
[1768347868317,0.002,3321.3,3320.8,4.05138737]
[1768347869411,0.002,3321.3,3320.8,7.06270994]
[1768347871412,0.002,3321.3,3320.8,4.05138737]
[1768347872707,0.002,3321.3,3320.8,7.06270994]
[1768347875219,0.002,3321.3,3320.8,4.05138737]
[1768347875718,0.98832544,3321.3,3320.9,0.398]
[1768347875935,0.002,3321.3,3320.9,0.398]
[1768347876226,0.002,3321.3,3321.0,0.398]
[1768347876432,0.98832544,3321.3,3320.7,3.85]
[1768347876731,0.98632544,3321.0,3320.7,3.85]
[1768347878097,0.98832544,3321.3,3319.9,0.75910526]
[1768347878297,0.98832544,3321.3,3320.2,3.01183933]
[1768347878496,0.98632544,3321.2,3320.2,3.01183933]
[1768347878713,0.98632544,3321.2,3320.3,3.01176893]
[1768347879617,0.39991054,3321.2,3320.3,3.77068947]
[1768347879932,0.98632544,3321.1,3320.3,3.01172948]
[1768347880097,0.98632544,3321.1,3320.6,0.001]
[1768347882811,0.98632544,3321.0,3320.6,0.001]
[1768347883799,0.002,3321.3,3320.6,0.001]
[1768347884232,0.002,3321.3,3320.6,0.4]
[1768347884436,1.01083345,3321.3,3320.6,0.4]
[1768347884729,0.98832544,3321.3,3319.3,3.35373269]
[1768347884906,0.98632544,3321.1,3319.9,3.01213757]
[1768347885106,0.98632544,3321.1,3319.8,3.01220727]
[1768347885334,0.98632544,3321.1,3319.8,3.01220486]
[1768347885538,0.98632544,3321.1,3319.9,3.01211959]
[1768347886209,0.98632544,3321.1,3319.8,6.0244593]
[1768347886407,0.98632544,3321.1,3319.8,3.65467558]
[1768347887036,0.98632544,3321.0,3319.8,3.65467558]
[1768347888467,0.002,3321.3,3319.9,4.62935438]
[1768347888742,0.002,3321.3,3320.5,4.599233]
[1768347888912,1e-08,3321.6,3320.6,0.77308842]
[1768347889519,1e-08,3321.6,3320.7,3.03848]
[1768347890146,1e-08,3321.6,3320.8,0.37408842]
[1768347890349,1e-08,3321.6,3320.7,6.0228265]
[1768347890523,1e-08,3321.6,3320.8,0.64218265]
[1768347890925,0.98632545,3321.6,3320.8,0.64218265]
[1768347891449,1e-08,3321.6,3320.8,0.64218265]
[1768347891957,1e-08,3321.6,3321.1,0.001]
[1768347892331,1e-08,3321.6,3320.1,3.01192404]
[1768347892332,0.98632544,3321.5,3319.9,6.02427782]
[1768347892530,0.98632544,3321.3,3320.0,1.06567238]
[1768347892736,0.98632544,3321.3,3320.0,0.66667238]
[1768347892937,0.98632544,3321.3,3320.1,0.399]
[1768347893144,0.98632544,3321.1,3320.1,0.399]
[1768347893443,0.98632544,3320.9,3319.7,0.001]
[1768347893632,0.98632544,3320.7,3319.7,0.001]
[1768347893834,0.98632544,3320.7,3319.7,0.4]
[1768347894240,0.98632544,3320.7,3319.7,0.001]
[1768347894556,0.98632544,3320.6,3319.7,0.001]
[1768347894743,1.38610551,3320.5,3319.7,0.001]
[1768347894942,0.98632544,3320.5,3319.7,0.001]
[1768347895751,1.38432544,3320.8,3319.7,0.001]
[1768347895953,4.39565102,3320.8,3319.7,0.001]
[1768347896325,0.98632544,3320.7,3319.7,0.001]
[1768347896554,0.53819765,3320.6,3319.7,0.001]
[1768347900331,0.98632544,3320.5,3319.7,0.001]
[1768347900532,0.398,3320.8,3319.8,0.75726669]
[1768347902058,2.36234835,3319.6,3318.8,1.32202397]
[1768347902247,0.63423484,3319.5,3318.8,1.32202397]
[1768347902451,0.13245068,3319.6,3318.9,0.91493406]
[1768347902629,1e-08,3319.6,3318.9,0.94506452]
[1768347902834,1e-08,3319.8,3319.2,0.91493406]
[1768347904041,1e-08,3319.8,3319.1,0.399]
[1768347904042,3.0110927,3321.1,3319.8,0.91493406]
[1768347904247,0.69910927,3321.0,3319.8,0.91493406]
[1768347904434,0.398,3320.9,3320.0,0.91493406]
[1768347904633,0.398,3320.9,3319.8,0.91493406]
[1768347904941,1.00883345,3320.8,3319.1,1.32780112]
[1768347905146,1.00883345,3320.8,3319.3,3.01263119]
[1768347905342,1.00883345,3320.8,3319.1,4.34064825]
[1768347905343,0.95505153,3320.6,3319.1,1.32780112]
[1768347905663,0.95505153,3320.4,3319.1,3.41183502]
[1768347905845,1.35305153,3320.3,3319.1,4.05431628]
[1768347906042,0.02250801,3320.2,3319.1,3.65531628]
[1768347906361,0.95505153,3320.3,3319.3,3.0126492]
[1768347906562,0.95505153,3320.3,3319.1,3.65532681]
[1768347906563,0.398,3320.2,3319.1,0.64248126]
[1768347906748,0.398,3320.2,3318.8,2.25082509]
[1768347906749,3.43238602,3320.2,3319.0,3.01289721]
[1768347907062,0.398,3320.2,3319.1,3.0128614]
[1768347907443,0.42050801,3320.2,3319.1,3.01281793]
[1768347907646,0.42050801,3320.2,3318.9,3.94183485]
[1768347907647,0.42050801,3320.2,3318.9,0.92880112]